[Event "Titled Tuesday Blitz May 4 2021"]
[White "Shirazi, Kamran"]
[Black "Djordjevic, Vuk"]
[WhiteFideId "2000733"]
[BlackFideId "902098"]
[WhiteElo "2317"]
[BlackElo "2463"]
[Result "0-1"]
[Round "01"]
[TimeControl "180+1"]
[Date "2021.05.04"]
[WhiteClock "0:00:13"]
[BlackClock "0:00:09"]

1. e4 {[%clk 0:02:56]}  e6 {[%clk 0:02:59]} 2. d4 {[%clk 0:02:53]}  d5 {[%clk 0:02:59]} 3. Nc3 {[%clk 0:02:53]}  Bb4 {[%clk 0:02:59]} 4. exd5 {[%clk 0:02:51]}  exd5 {[%clk 0:02:58]} 5. Ne2 {[%clk 0:02:49]}  Nf6 {[%clk 0:02:58]} 6. a3 {[%clk 0:02:49]}  Bd6 {[%clk 0:02:39]} 7. Nb5 {[%clk 0:02:43]}  Be7 {[%clk 0:02:36]} 8. Bf4 {[%clk 0:02:42]}  Na6 {[%clk 0:02:36]} 9. Ng3 {[%clk 0:02:40]}  O-O {[%clk 0:02:30]} 10. Bd3 {[%clk 0:02:34]}  c6 {[%clk 0:02:17]} 11. Nc3 {[%clk 0:02:33]}  Nc7 {[%clk 0:02:18]} 12. h3 {[%clk 0:02:26]}  Ne6 {[%clk 0:02:16]} 13. Be3 {[%clk 0:02:25]}  Bd6 {[%clk 0:02:10]} 14. Nf5 {[%clk 0:02:24]}  Nf4 {[%clk 0:02:01]} 15. Bxf4 {[%clk 0:02:16]}  Bxf4 {[%clk 0:02:02]} 16. O-O {[%clk 0:02:15]}  g6 {[%clk 0:01:27]} 17. Ng3 {[%clk 0:02:03]}  Qd6 {[%clk 0:01:26]} 18. Qf3 {[%clk 0:02:01]}  Bd7 {[%clk 0:01:19]} 19. Nce2 {[%clk 0:01:56]}  Bg5 {[%clk 0:01:14]} 20. c4 {[%clk 0:01:38]}  dxc4 {[%clk 0:01:04]} 21. Bxc4 {[%clk 0:01:37]}  Rae8 {[%clk 0:01:00]} 22. Rad1 {[%clk 0:01:36]}  Kg7 {[%clk 0:00:55]} 23. Nc3 {[%clk 0:01:34]}  Qf4 {[%clk 0:00:47]} 24. Qd3 {[%clk 0:01:31]}  h5 {[%clk 0:00:44]} 25. Nce2 {[%clk 0:01:20]}  Qd6 {[%clk 0:00:42]} 26. f4 {[%clk 0:01:12]}  Bh6 {[%clk 0:00:39]} 27. Rf3 {[%clk 0:01:09]}  h4 {[%clk 0:00:37]} 28. Nf1 {[%clk 0:01:09]}  Bf5 {[%clk 0:00:37]} 29. Qc3 {[%clk 0:01:08]}  Ne4 {[%clk 0:00:34]} 30. Qa5 {[%clk 0:01:03]}  b6 {[%clk 0:00:30]} 31. Qxa7 {[%clk 0:00:57]}  Ra8 {[%clk 0:00:30]} 32. Qb7 {[%clk 0:00:48]}  b5 {[%clk 0:00:21]} 33. Ba2 {[%clk 0:00:47]}  Rab8 {[%clk 0:00:18]} 34. Qa6 {[%clk 0:00:47]}  Ra8 {[%clk 0:00:19]} 35. Qb7 {[%clk 0:00:45]}  Nf6 {[%clk 0:00:18]} 36. d5 {[%clk 0:00:40]}  cxd5 {[%clk 0:00:10]} 37. Qxb5 {[%clk 0:00:35]}  Rab8 {[%clk 0:00:09]} 38. Qa5 {[%clk 0:00:31]}  Rxb2 {[%clk 0:00:09]} 39. Nc3 {[%clk 0:00:28]}  d4 {[%clk 0:00:10]} 40. Nd5 {[%clk 0:00:23]}  Nxd5 {[%clk 0:00:08]} 41. Bxd5 {[%clk 0:00:22]}  Bxf4 {[%clk 0:00:07]} 42. Bc4 {[%clk 0:00:14]}  Qe5 {[%clk 0:00:05]} 43. Qxe5+ {[%clk 0:00:12]}  Bxe5 {[%clk 0:00:05]} 44. Rxf5 {[%clk 0:00:13]}  gxf5 {[%clk 0:00:05]} 45. Bd3 {[%clk 0:00:14]}  Rb3 {[%clk 0:00:06]} 46. Nh2 {[%clk 0:00:14]}  Bxh2+ {[%clk 0:00:05]} 47. Kxh2 {[%clk 0:00:14]}  Rxa3 {[%clk 0:00:06]} 48. Bxf5 {[%clk 0:00:14]}  Rd8 {[%clk 0:00:06]} 49. Bd3 {[%clk 0:00:13]}  Re8 {[%clk 0:00:07]} 50. Kg1 {[%clk 0:00:13]}  Re3 {[%clk 0:00:06]} 51. Kf2 {[%clk 0:00:13]}  Rexd3 {[%clk 0:00:06]} 52. Rb1 {[%clk 0:00:12]}  Rd2+ {[%clk 0:00:07]} 53. Ke1 {[%clk 0:00:11]}  Rxg2 {[%clk 0:00:07]} 54. Kf1 {[%clk 0:00:11]}  Rag3 {[%clk 0:00:06]} 55. Rd1 {[%clk 0:00:12]}  Rg1+ {[%clk 0:00:06]} 56. Kf2 {[%clk 0:00:13]}  R3g2+ {[%clk 0:00:07]} 57. Kf3 {[%clk 0:00:13]}  Rxd1 {[%clk 0:00:08]} 58. Kxg2 {[%clk 0:00:13]}  Rd3 {[%clk 0:00:09]} 59. Kf2 {[%clk 0:00:13]}  Re3 {[%clk 0:00:09]} 0-1


[Site "https://www.chess.com"]

[Event "Titled Tuesday Blitz May 4 2021"]
[White "Shkapenko, Pavel"]
[Black "Berezin, Viktor"]
[WhiteFideId "4151933"]
[BlackFideId "14107872"]
[WhiteElo "2386"]
[BlackElo "2310"]
[Result "1-0"]
[Round "01"]
[TimeControl "180+1"]
[Date "2021.05.04"]
[WhiteClock "0:01:40"]
[BlackClock "0:01:22"]

1. e4 {[%clk 0:02:59]}  c6 {[%clk 0:02:58]} 2. d4 {[%clk 0:02:59]}  d5 {[%clk 0:02:58]} 3. e5 {[%clk 0:02:59]}  c5 {[%clk 0:02:58]} 4. dxc5 {[%clk 0:02:59]}  Nc6 {[%clk 0:02:58]} 5. a3 {[%clk 0:02:56]}  e6 {[%clk 0:02:48]} 6. Nf3 {[%clk 0:02:54]}  Bxc5 {[%clk 0:02:46]} 7. b4 {[%clk 0:02:54]}  Bb6 {[%clk 0:02:46]} 8. c4 {[%clk 0:02:48]}  dxc4 {[%clk 0:02:43]} 9. Qxd8+ {[%clk 0:02:47]}  Bxd8 {[%clk 0:02:41]} 10. Bxc4 {[%clk 0:02:47]}  Bc7 {[%clk 0:02:42]} 11. Bb2 {[%clk 0:02:46]}  Nh6 {[%clk 0:02:39]} 12. O-O {[%clk 0:02:41]}  O-O {[%clk 0:02:38]} 13. Re1 {[%clk 0:02:35]}  Nf5 {[%clk 0:02:36]} 14. Nc3 {[%clk 0:02:34]}  a6 {[%clk 0:02:27]} 15. Rad1 {[%clk 0:02:26]}  b5 {[%clk 0:02:25]} 16. Bd3 {[%clk 0:02:26]}  Nfe7 {[%clk 0:02:11]} 17. Be4 {[%clk 0:02:22]}  Bb7 {[%clk 0:02:08]} 18. Rd7 {[%clk 0:02:21]}  Rac8 {[%clk 0:01:52]} 19. Rxe7 {[%clk 0:02:20]}  Nxe7 {[%clk 0:01:53]} 20. Bxb7 {[%clk 0:02:20]}  Rcd8 {[%clk 0:01:52]} 21. Bxa6 {[%clk 0:02:17]}  Nd5 {[%clk 0:01:51]} 22. Nxb5 {[%clk 0:02:16]}  Bb8 {[%clk 0:01:49]} 23. Nbd4 {[%clk 0:02:05]}  Nf4 {[%clk 0:01:45]} 24. Nc6 {[%clk 0:02:04]}  Rd5 {[%clk 0:01:41]} 25. Ne7+ {[%clk 0:02:03]}  Kh8 {[%clk 0:01:40]} 26. Nxd5 {[%clk 0:02:03]}  Nxd5 {[%clk 0:01:36]} 27. Bb7 {[%clk 0:02:01]}  Nf4 {[%clk 0:01:35]} 28. Rd1 {[%clk 0:01:59]}  h5 {[%clk 0:01:31]} 29. g3 {[%clk 0:01:59]}  Ng6 {[%clk 0:01:29]} 30. Rd7 {[%clk 0:01:46]}  Kh7 {[%clk 0:01:23]} 31. Ng5+ {[%clk 0:01:42]}  Kh6 {[%clk 0:01:22]} 32. Nxf7+ {[%clk 0:01:40]} 1-0


[Site "https://www.chess.com"]

[Event "Titled Tuesday Blitz May 4 2021"]
[White "Shukhman, Anna"]
[Black "Ibrayev, Nurlan"]
[WhiteFideId "54180058"]
[BlackFideId "13700650"]
[WhiteElo "1628"]
[BlackElo "2366"]
[Result "0-1"]
[Round "01"]
[TimeControl "180+1"]
[Date "2021.05.04"]
[WhiteClock "0:00:01"]
[BlackClock "0:00:10"]

1. e4 {[%clk 0:03:00]}  c5 {[%clk 0:02:59]} 2. Nf3 {[%clk 0:03:00]}  d6 {[%clk 0:02:59]} 3. d4 {[%clk 0:03:00]}  cxd4 {[%clk 0:02:59]} 4. Nxd4 {[%clk 0:03:00]}  Nf6 {[%clk 0:03:00]} 5. Nc3 {[%clk 0:03:00]}  a6 {[%clk 0:03:00]} 6. h4 {[%clk 0:02:58]}  e5 {[%clk 0:02:55]} 7. Nb3 {[%clk 0:02:57]}  Be6 {[%clk 0:02:53]} 8. f4 {[%clk 0:02:56]}  exf4 {[%clk 0:02:50]} 9. Bxf4 {[%clk 0:02:55]}  Be7 {[%clk 0:02:50]} 10. Be2 {[%clk 0:02:46]}  O-O {[%clk 0:02:48]} 11. Qd2 {[%clk 0:02:43]}  d5 {[%clk 0:02:47]} 12. exd5 {[%clk 0:02:40]}  Nxd5 {[%clk 0:02:46]} 13. Nxd5 {[%clk 0:02:39]}  Qxd5 {[%clk 0:02:28]} 14. O-O-O {[%clk 0:02:37]}  Qxd2+ {[%clk 0:02:23]} 15. Rxd2 {[%clk 0:02:37]}  Nc6 {[%clk 0:02:24]} 16. Bf3 {[%clk 0:02:26]}  Rad8 {[%clk 0:02:19]} 17. Rhd1 {[%clk 0:02:24]}  Bxh4 {[%clk 0:02:13]} 18. Nc5 {[%clk 0:02:22]}  Bc8 {[%clk 0:02:07]} 19. Nxa6 {[%clk 0:02:21]}  Bf6 {[%clk 0:01:50]} 20. Nc5 {[%clk 0:02:12]}  Nd4 {[%clk 0:01:29]} 21. Bxb7 {[%clk 0:02:06]}  Bg4 {[%clk 0:01:25]} 22. Re1 {[%clk 0:01:58]}  Rfe8 {[%clk 0:01:22]} 23. Ne4 {[%clk 0:01:48]}  Kh8 {[%clk 0:01:11]} 24. c3 {[%clk 0:01:45]}  Bh4 {[%clk 0:01:00]} 25. Rh1 {[%clk 0:01:33]}  Nf5 {[%clk 0:00:59]} 26. Rxd8 {[%clk 0:01:17]}  Rxd8 {[%clk 0:00:59]} 27. Bg5 {[%clk 0:01:10]}  Bxg5+ {[%clk 0:00:49]} 28. Nxg5 {[%clk 0:01:10]}  Kg8 {[%clk 0:00:50]} 29. a4 {[%clk 0:01:06]}  h6 {[%clk 0:00:46]} 30. Ne4 {[%clk 0:01:05]}  Rb8 {[%clk 0:00:39]} 31. Bc6 {[%clk 0:01:00]}  Ne7 {[%clk 0:00:37]} 32. Bb5 {[%clk 0:00:59]}  Be6 {[%clk 0:00:32]} 33. Nc5 {[%clk 0:00:58]}  Bd5 {[%clk 0:00:32]} 34. Re1 {[%clk 0:00:55]}  Ng6 {[%clk 0:00:29]} 35. Nd7 {[%clk 0:00:53]}  Rd8 {[%clk 0:00:29]} 36. a5 {[%clk 0:00:50]}  Bxg2 {[%clk 0:00:27]} 37. a6 {[%clk 0:00:49]}  Nf4 {[%clk 0:00:26]} 38. Re3 {[%clk 0:00:33]}  h5 {[%clk 0:00:24]} 39. a7 {[%clk 0:00:33]}  h4 {[%clk 0:00:24]} 40. Nb6 {[%clk 0:00:29]}  h3 {[%clk 0:00:24]} 41. Rxh3 {[%clk 0:00:08]}  Nxh3 {[%clk 0:00:22]} 42. Kc2 {[%clk 0:00:07]}  Nf4 {[%clk 0:00:19]} 43. Kb3 {[%clk 0:00:07]}  Ne6 {[%clk 0:00:18]} 44. Kb4 {[%clk 0:00:06]}  Nc7 {[%clk 0:00:18]} 45. Bc4 {[%clk 0:00:05]}  g5 {[%clk 0:00:17]} 46. Kc5 {[%clk 0:00:04]}  Kg7 {[%clk 0:00:17]} 47. b4 {[%clk 0:00:03]}  g4 {[%clk 0:00:17]} 48. b5 {[%clk 0:00:03]}  g3 {[%clk 0:00:16]} 49. Na4 {[%clk 0:00:02]}  Nxb5 {[%clk 0:00:14]} 50. Bxb5 {[%clk 0:00:01]}  Bf3 {[%clk 0:00:11]} 51. Bf1 {[%clk 0:00:01]}  Rd1 {[%clk 0:00:10]} 0-1


[Site "https://www.chess.com"]

[Event "Titled Tuesday Blitz May 4 2021"]
[White "Silva, Kaua Marques"]
[Black "Vlassov, Nikolai"]
[WhiteFideId "22701168"]
[BlackFideId "4103360"]
[WhiteElo "2013"]
[BlackElo "2407"]
[Result "0-1"]
[Round "01"]
[TimeControl "180+1"]
[Date "2021.05.04"]
[WhiteClock "0:01:36"]
[BlackClock "0:02:11"]

1. e4 {[%clk 0:02:53]}  Nc6 {[%clk 0:02:59]} 2. Nf3 {[%clk 0:02:50]}  d5 {[%clk 0:02:59]} 3. exd5 {[%clk 0:02:50]}  Qxd5 {[%clk 0:02:58]} 4. Nc3 {[%clk 0:02:49]}  Qa5 {[%clk 0:02:58]} 5. Bc4 {[%clk 0:02:35]}  Bg4 {[%clk 0:02:58]} 6. h3 {[%clk 0:02:33]}  Bh5 {[%clk 0:02:57]} 7. g4 {[%clk 0:02:33]}  Bg6 {[%clk 0:02:56]} 8. d3 {[%clk 0:02:32]}  O-O-O {[%clk 0:02:56]} 9. Bd2 {[%clk 0:02:31]}  e5 {[%clk 0:02:55]} 10. Nh4 {[%clk 0:02:26]}  Nf6 {[%clk 0:02:46]} 11. Qc1 {[%clk 0:02:12]}  Nd4 {[%clk 0:02:42]} 12. Nd5 {[%clk 0:02:03]}  Qc5 {[%clk 0:02:34]} 13. b4 {[%clk 0:01:56]}  Qc6 {[%clk 0:02:17]} 14. b5 {[%clk 0:01:54]}  Nxb5 {[%clk 0:02:16]} 15. Nxf6 {[%clk 0:01:52]}  Qxh1+ {[%clk 0:02:15]} 16. Ke2 {[%clk 0:01:51]}  Nd4+ {[%clk 0:02:14]} 17. Ke3 {[%clk 0:01:39]}  Qxh3+ {[%clk 0:02:13]} 18. f3 {[%clk 0:01:36]}  gxf6 {[%clk 0:02:11]} 0-1


[Site "https://www.chess.com"]

[Event "Titled Tuesday Blitz May 4 2021"]
[White "Sipila, Vilka"]
[Black "Papp, Petra"]
[WhiteFideId "505455"]
[BlackFideId "739049"]
[WhiteElo "2334"]
[BlackElo "2259"]
[Result "1/2-1/2"]
[Round "01"]
[TimeControl "180+1"]
[Date "2021.05.04"]
[WhiteClock "0:01:35"]
[BlackClock "0:00:15"]

1. b3 {[%clk 0:02:43]}  d5 {[%clk 0:02:57]} 2. Bb2 {[%clk 0:02:44]}  Bf5 {[%clk 0:02:56]} 3. e3 {[%clk 0:02:44]}  e6 {[%clk 0:02:54]} 4. f4 {[%clk 0:02:44]}  Nf6 {[%clk 0:02:54]} 5. Nf3 {[%clk 0:02:45]}  h6 {[%clk 0:02:53]} 6. Bd3 {[%clk 0:02:46]}  Ne4 {[%clk 0:02:49]} 7. O-O {[%clk 0:02:45]}  c5 {[%clk 0:02:45]} 8. Bb5+ {[%clk 0:02:45]}  Nc6 {[%clk 0:02:41]} 9. Ne5 {[%clk 0:02:43]}  Qb6 {[%clk 0:02:40]} 10. Bxc6+ {[%clk 0:02:43]}  bxc6 {[%clk 0:02:39]} 11. d3 {[%clk 0:02:42]}  Nd6 {[%clk 0:02:33]} 12. g4 {[%clk 0:02:42]}  Bh7 {[%clk 0:02:32]} 13. Nd2 {[%clk 0:02:41]}  f6 {[%clk 0:02:31]} 14. Nef3 {[%clk 0:02:41]}  Be7 {[%clk 0:02:29]} 15. Qe2 {[%clk 0:02:41]}  O-O-O {[%clk 0:02:26]} 16. e4 {[%clk 0:02:41]}  Rde8 {[%clk 0:02:18]} 17. e5 {[%clk 0:02:40]}  Nb5 {[%clk 0:02:14]} 18. a4 {[%clk 0:02:36]}  Nd4 {[%clk 0:02:08]} 19. Nxd4 {[%clk 0:02:36]}  cxd4 {[%clk 0:02:08]} 20. a5 {[%clk 0:02:33]}  Qc5 {[%clk 0:02:05]} 21. Nf3 {[%clk 0:02:34]}  fxe5 {[%clk 0:01:59]} 22. fxe5 {[%clk 0:02:24]}  Qb4 {[%clk 0:01:45]} 23. Ra4 {[%clk 0:02:19]}  Qb7 {[%clk 0:01:31]} 24. Bxd4 {[%clk 0:02:15]}  c5 {[%clk 0:00:47]} 25. Bf2 {[%clk 0:02:15]}  d4 {[%clk 0:00:40]} 26. b4 {[%clk 0:02:13]}  cxb4 {[%clk 0:00:38]} 27. Bxd4 {[%clk 0:02:10]}  Kb8 {[%clk 0:00:37]} 28. Rb1 {[%clk 0:02:06]}  Ka8 {[%clk 0:00:37]} 29. c3 {[%clk 0:02:03]}  b3 {[%clk 0:00:32]} 30. c4 {[%clk 0:01:58]}  Rd8 {[%clk 0:00:29]} 31. a6 {[%clk 0:01:56]}  Qc6 {[%clk 0:00:28]} 32. Ra5 {[%clk 0:01:56]}  Rxd4 {[%clk 0:00:28]} 33. Nxd4 {[%clk 0:01:54]}  Bc5 {[%clk 0:00:27]} 34. Qg2 {[%clk 0:01:47]}  Bxd4+ {[%clk 0:00:26]} 35. Kh1 {[%clk 0:01:47]}  Qxg2+ {[%clk 0:00:24]} 36. Kxg2 {[%clk 0:01:48]}  Rb8 {[%clk 0:00:24]} 37. Ra3 {[%clk 0:01:45]}  Bxd3 {[%clk 0:00:23]} 38. Rbxb3 {[%clk 0:01:43]}  Rxb3 {[%clk 0:00:20]} 39. Rxb3 {[%clk 0:01:44]}  Bxc4 {[%clk 0:00:21]} 40. Rb4 {[%clk 0:01:41]}  Bd5+ {[%clk 0:00:20]} 41. Kh3 {[%clk 0:01:41]}  Bxe5 {[%clk 0:00:21]} 42. Rb1 {[%clk 0:01:39]}  g5 {[%clk 0:00:20]} 43. Rb8+ {[%clk 0:01:35]}  Bxb8 {[%clk 0:00:15]} 1/2-1/2


[Site "https://www.chess.com"]

[Event "Titled Tuesday Blitz May 4 2021"]
[White "Sirosh, Ilja"]
[Black "Lejean-Anusca, Madalina-Maria"]
[WhiteFideId "4500458"]
[BlackFideId "1215396"]
[WhiteElo "2241"]
[BlackElo "2002"]
[Result "1-0"]
[Round "01"]
[TimeControl "180+1"]
[Date "2021.05.04"]
[WhiteClock "0:01:57"]
[BlackClock "0:01:44"]

1. e4 {[%clk 0:03:00]}  c6 {[%clk 0:02:58]} 2. d4 {[%clk 0:02:59]}  d5 {[%clk 0:02:58]} 3. exd5 {[%clk 0:03:00]}  cxd5 {[%clk 0:02:58]} 4. c4 {[%clk 0:03:01]}  Nc6 {[%clk 0:02:57]} 5. Nc3 {[%clk 0:03:00]}  Nf6 {[%clk 0:02:56]} 6. Nf3 {[%clk 0:02:59]}  e6 {[%clk 0:02:55]} 7. cxd5 {[%clk 0:02:58]}  Nxd5 {[%clk 0:02:54]} 8. Bc4 {[%clk 0:02:56]}  Bb4 {[%clk 0:02:52]} 9. Qc2 {[%clk 0:02:53]}  O-O {[%clk 0:02:50]} 10. O-O {[%clk 0:02:53]}  Nxc3 {[%clk 0:02:45]} 11. bxc3 {[%clk 0:02:53]}  Be7 {[%clk 0:02:45]} 12. Qe4 {[%clk 0:02:50]}  a6 {[%clk 0:02:44]} 13. Bd3 {[%clk 0:02:44]}  g6 {[%clk 0:02:42]} 14. Bh6 {[%clk 0:02:40]}  Re8 {[%clk 0:02:42]} 15. h4 {[%clk 0:02:29]}  Bf6 {[%clk 0:02:34]} 16. h5 {[%clk 0:02:29]}  Bg7 {[%clk 0:02:33]} 17. Qe3 {[%clk 0:02:20]}  e5 {[%clk 0:02:23]} 18. Bxg7 {[%clk 0:02:17]}  Kxg7 {[%clk 0:02:23]} 19. h6+ {[%clk 0:02:16]}  Kg8 {[%clk 0:02:20]} 20. dxe5 {[%clk 0:02:15]}  Nxe5 {[%clk 0:02:09]} 21. Nxe5 {[%clk 0:02:14]}  f6 {[%clk 0:02:06]} 22. Bc4+ {[%clk 0:02:14]}  Kf8 {[%clk 0:02:02]} 23. f4 {[%clk 0:02:04]}  b5 {[%clk 0:01:58]} 24. Bb3 {[%clk 0:01:58]}  Bf5 {[%clk 0:01:52]} 25. Qc5+ {[%clk 0:01:58]}  Re7 {[%clk 0:01:49]} 26. Nc6 {[%clk 0:01:58]}  Qc7 {[%clk 0:01:44]} 27. Qxe7+ {[%clk 0:01:56]}  Qxe7 {[%clk 0:01:43]} 28. Nxe7 {[%clk 0:01:57]}  Kxe7 {[%clk 0:01:44]} 29. Rfe1+ {[%clk 0:01:57]} 1-0


[Site "https://www.chess.com"]

[Event "Titled Tuesday Blitz May 4 2021"]
[White "Skoberne, Jure"]
[Black "Suvorov, Luca"]
[WhiteFideId "14604299"]
[BlackFideId "12977071"]
[WhiteElo "2559"]
[BlackElo "2127"]
[Result "1-0"]
[Round "01"]
[TimeControl "180+1"]
[Date "2021.05.04"]
[WhiteClock "0:00:54"]
[BlackClock "0:00:04"]

1. d4 {[%clk 0:03:00]}  Nf6 {[%clk 0:02:58]} 2. c4 {[%clk 0:03:01]}  e6 {[%clk 0:02:59]} 3. Nf3 {[%clk 0:03:01]}  a6 {[%clk 0:02:58]} 4. g3 {[%clk 0:03:01]}  b5 {[%clk 0:02:58]} 5. Bg2 {[%clk 0:02:59]}  Bb7 {[%clk 0:02:57]} 6. b3 {[%clk 0:02:58]}  c5 {[%clk 0:02:53]} 7. d5 {[%clk 0:02:54]}  exd5 {[%clk 0:02:51]} 8. Nh4 {[%clk 0:02:53]}  Qa5+ {[%clk 0:02:47]} 9. Bd2 {[%clk 0:02:49]}  Qb6 {[%clk 0:02:46]} 10. cxd5 {[%clk 0:02:41]}  Bxd5 {[%clk 0:02:45]} 11. e4 {[%clk 0:02:42]}  Bxe4 {[%clk 0:02:33]} 12. O-O {[%clk 0:02:39]}  Bxg2 {[%clk 0:02:29]} 13. Kxg2 {[%clk 0:02:39]}  Be7 {[%clk 0:02:24]} 14. Nf5 {[%clk 0:02:36]}  g6 {[%clk 0:01:42]} 15. Nxe7 {[%clk 0:02:31]}  Kxe7 {[%clk 0:01:43]} 16. Re1+ {[%clk 0:02:21]}  Kd8 {[%clk 0:01:41]} 17. Qf3 {[%clk 0:02:13]}  d5 {[%clk 0:00:45]} 18. Bg5 {[%clk 0:01:43]}  Nd7 {[%clk 0:00:44]} 19. Nc3 {[%clk 0:01:43]}  Kc8 {[%clk 0:00:22]} 20. Rac1 {[%clk 0:01:26]}  Ra7 {[%clk 0:00:12]} 21. Re7 {[%clk 0:01:18]}  Rd8 {[%clk 0:00:11]} 22. Rxf7 {[%clk 0:01:06]}  Ne5 {[%clk 0:00:10]} 23. Qxf6 {[%clk 0:01:07]}  Qxf6 {[%clk 0:00:09]} 24. Rxf6 {[%clk 0:01:07]}  d4 {[%clk 0:00:08]} 25. Nxb5 {[%clk 0:01:00]}  axb5 {[%clk 0:00:07]} 26. Rxc5+ {[%clk 0:01:00]}  Rc7 {[%clk 0:00:08]} 27. Rxe5 {[%clk 0:00:59]}  d3 {[%clk 0:00:08]} 28. Ra6 {[%clk 0:00:54]}  Kb7 {[%clk 0:00:05]} 29. Bxd8 {[%clk 0:00:54]}  Rd7 {[%clk 0:00:04]} 1-0


[Site "https://www.chess.com"]

[Event "Titled Tuesday Blitz May 4 2021"]
[White "Skuhala, Jernej"]
[Black "Demchenko, Anton"]
[WhiteFideId "14605651"]
[BlackFideId "4160258"]
[WhiteElo "2415"]
[BlackElo "2593"]
[Result "0-1"]
[Round "01"]
[TimeControl "180+1"]
[Date "2021.05.04"]
[WhiteClock "0:00:12"]
[BlackClock "0:01:34"]

1. e4 {[%clk 0:00:34]}  e5 {[%clk 0:02:59]} 2. Nf3 {[%clk 0:00:31]}  Nc6 {[%clk 0:02:59]} 3. Bb5 {[%clk 0:00:28]}  a6 {[%clk 0:02:57]} 4. Ba4 {[%clk 0:00:28]}  g6 {[%clk 0:02:55]} 5. d4 {[%clk 0:00:27]}  exd4 {[%clk 0:02:54]} 6. Bxc6 {[%clk 0:00:27]}  dxc6 {[%clk 0:02:54]} 7. Qxd4 {[%clk 0:00:27]}  Qxd4 {[%clk 0:02:53]} 8. Nxd4 {[%clk 0:00:28]}  Bd7 {[%clk 0:02:53]} 9. Be3 {[%clk 0:00:28]}  O-O-O {[%clk 0:02:53]} 10. Nd2 {[%clk 0:00:29]}  Re8 {[%clk 0:02:49]} 11. O-O-O {[%clk 0:00:25]}  h5 {[%clk 0:02:42]} 12. f3 {[%clk 0:00:24]}  f5 {[%clk 0:02:35]} 13. Rhe1 {[%clk 0:00:23]}  Nh6 {[%clk 0:02:07]} 14. N4b3 {[%clk 0:00:20]}  b6 {[%clk 0:02:03]} 15. Bg5 {[%clk 0:00:18]}  Bg7 {[%clk 0:01:54]} 16. Nc4 {[%clk 0:00:16]}  fxe4 {[%clk 0:01:51]} 17. fxe4 {[%clk 0:00:16]}  Ng4 {[%clk 0:01:48]} 18. h3 {[%clk 0:00:16]}  Nf2 {[%clk 0:01:41]} 19. Rxd7 {[%clk 0:00:14]}  Kxd7 {[%clk 0:01:40]} 20. Rf1 {[%clk 0:00:14]}  Rhf8 {[%clk 0:01:34]} 21. e5 {[%clk 0:00:12]}  Nd3+ {[%clk 0:01:34]} 22. cxd3 {[%clk 0:00:12]}  Rxf1+ {[%clk 0:01:34]} 0-1


[Site "https://www.chess.com"]

[Event "Titled Tuesday Blitz May 4 2021"]
[White "Slovak_fighter2000"]
[Black "Le, Tuan Minh"]
[BlackFideId "12401153"]
[WhiteElo "2442"]
[BlackElo "2450"]
[Result "0-1"]
[Round "01"]
[TimeControl "180+1"]
[Date "2021.05.04"]
[WhiteClock "0:00:02"]
[BlackClock "0:00:05"]

1. d4 {[%clk 0:03:00]}  d5 {[%clk 0:02:59]} 2. Nf3 {[%clk 0:03:01]}  Nf6 {[%clk 0:03:00]} 3. Bf4 {[%clk 0:03:01]}  Bf5 {[%clk 0:02:59]} 4. e3 {[%clk 0:03:01]}  e6 {[%clk 0:03:00]} 5. Bd3 {[%clk 0:02:59]}  Bg6 {[%clk 0:03:00]} 6. O-O {[%clk 0:02:58]}  Bd6 {[%clk 0:02:59]} 7. Bxd6 {[%clk 0:02:57]}  cxd6 {[%clk 0:02:55]} 8. c4 {[%clk 0:02:56]}  dxc4 {[%clk 0:02:56]} 9. Bxc4 {[%clk 0:02:56]}  O-O {[%clk 0:02:56]} 10. Nc3 {[%clk 0:02:55]}  Nbd7 {[%clk 0:02:52]} 11. Rc1 {[%clk 0:02:54]}  a6 {[%clk 0:02:51]} 12. Bd3 {[%clk 0:02:52]}  Rc8 {[%clk 0:02:49]} 13. Bxg6 {[%clk 0:02:52]}  hxg6 {[%clk 0:02:50]} 14. Qb3 {[%clk 0:02:48]}  Qb6 {[%clk 0:02:39]} 15. Qxb6 {[%clk 0:02:42]}  Nxb6 {[%clk 0:02:40]} 16. Nd2 {[%clk 0:02:41]}  e5 {[%clk 0:02:31]} 17. dxe5 {[%clk 0:02:40]}  dxe5 {[%clk 0:02:32]} 18. Nde4 {[%clk 0:02:32]}  Rfd8 {[%clk 0:02:15]} 19. Rfd1 {[%clk 0:02:24]}  Rxd1+ {[%clk 0:02:00]} 20. Rxd1 {[%clk 0:02:22]}  Kf8 {[%clk 0:01:59]} 21. Nxf6 {[%clk 0:02:15]}  gxf6 {[%clk 0:01:58]} 22. g4 {[%clk 0:02:05]}  Ke7 {[%clk 0:01:57]} 23. Rc1 {[%clk 0:01:46]}  Ke6 {[%clk 0:01:52]} 24. Kf1 {[%clk 0:01:29]}  f5 {[%clk 0:01:45]} 25. gxf5+ {[%clk 0:01:28]}  Kxf5 {[%clk 0:01:46]} 26. Ke2 {[%clk 0:01:22]}  Rh8 {[%clk 0:01:46]} 27. Nb1 {[%clk 0:01:08]}  Nd5 {[%clk 0:01:23]} 28. Nd2 {[%clk 0:01:05]}  Ke6 {[%clk 0:01:23]} 29. Ne4 {[%clk 0:01:03]}  b6 {[%clk 0:00:53]} 30. Rc6+ {[%clk 0:01:01]}  Ke7 {[%clk 0:00:53]} 31. Rd6 {[%clk 0:00:56]}  Rd8 {[%clk 0:00:54]} 32. Rxd8 {[%clk 0:00:55]}  Kxd8 {[%clk 0:00:54]} 33. a3 {[%clk 0:00:48]}  Kd7 {[%clk 0:00:54]} 34. Kd3 {[%clk 0:00:47]}  f5 {[%clk 0:00:36]} 35. Nd2 {[%clk 0:00:47]}  Ke6 {[%clk 0:00:31]} 36. Nc4 {[%clk 0:00:43]}  b5 {[%clk 0:00:32]} 37. Nd2 {[%clk 0:00:41]}  Nf6 {[%clk 0:00:32]} 38. f3 {[%clk 0:00:37]}  Kd5 {[%clk 0:00:30]} 39. e4+ {[%clk 0:00:37]}  Kd6 {[%clk 0:00:30]} 40. exf5 {[%clk 0:00:31]}  gxf5 {[%clk 0:00:30]} 41. Nf1 {[%clk 0:00:23]}  Nd5 {[%clk 0:00:29]} 42. Ng3 {[%clk 0:00:17]}  Ke6 {[%clk 0:00:29]} 43. Ne2 {[%clk 0:00:16]}  Kf6 {[%clk 0:00:27]} 44. Nc1 {[%clk 0:00:14]}  Nb6 {[%clk 0:00:22]} 45. b3 {[%clk 0:00:09]}  Kg5 {[%clk 0:00:20]} 46. Ke2 {[%clk 0:00:09]}  Nd5 {[%clk 0:00:19]} 47. Nd3 {[%clk 0:00:09]}  Kf6 {[%clk 0:00:08]} 48. Nc5 {[%clk 0:00:09]}  a5 {[%clk 0:00:09]} 49. Nb7 {[%clk 0:00:08]}  a4 {[%clk 0:00:07]} 50. bxa4 {[%clk 0:00:09]}  bxa4 {[%clk 0:00:08]} 51. Nc5 {[%clk 0:00:09]}  Nb6 {[%clk 0:00:09]} 52. Kd3 {[%clk 0:00:08]}  Kg5 {[%clk 0:00:09]} 53. Ke2 {[%clk 0:00:05]}  Kh4 {[%clk 0:00:06]} 54. Nd3 {[%clk 0:00:04]}  Nc4 {[%clk 0:00:06]} 55. Nc5 {[%clk 0:00:03]}  Nxa3 {[%clk 0:00:06]} 56. Nxa4 {[%clk 0:00:04]}  Nc4 {[%clk 0:00:06]} 57. Nc5 {[%clk 0:00:02]}  Kg5 {[%clk 0:00:05]} 0-1


[Site "https://www.chess.com"]